bitfinex-derivatives/quotes_SOLF0:USTF0_20230103
["timestamp","ask_amount","ask_price","bid_price","bid_amount"]
[1672746817279,16.64240899,11.844,11.836,0.06623979]
[1672746819385,0.06049924,11.844,11.836,0.06623979]
[1672746830942,0.00049924,11.844,11.839,16.83]
[1672746831256,0.00049924,11.844,11.84,4.0]
[1672746839140,0.00049924,11.844,11.838,4.0]
[1672746843552,16.67,11.841,11.815,63.48]
[1672746843766,16.82,11.833,11.82,16.8]
[1672746843976,4.0,11.832,11.823,49.92191204]
[1672746844289,4.0,11.832,11.821,46.3213]
[1672746844710,0.06558786,11.831,11.822,4.06021301]
[1672746844915,0.06558786,11.831,11.823,49.92191204]
[1672746845445,0.06558786,11.831,11.822,4.06021301]
[1672746845657,0.06558786,11.831,11.822,0.06021301]
[1672746846707,0.06558786,11.831,11.823,49.92191204]
[1672746847024,0.06558786,11.831,11.824,4.0]
[1672746848285,0.06558786,11.831,11.822,4.06021301]
[1672746848494,0.06558786,11.831,11.822,0.06021301]
[1672746848915,16.82,11.83,11.822,0.06021301]
[1672746849338,4.0,11.829,11.822,16.88021301]
[1672746849758,0.06558786,11.831,11.826,16.76]
[1672746850072,0.06558786,11.831,11.827,4.0]
[1672746851968,8.786e-05,11.831,11.827,4.0]
[1672746855012,8.786e-05,11.831,11.83,49.92191204]
[1672746855229,16.81,11.844,11.831,4.0]
[1672746855537,16.82,11.842,11.831,4.0]
[1672746855751,4.0,11.843,11.831,4.0]
[1672746855962,4.0,11.843,11.829,4.0]
[1672746856175,16.82,11.838,11.829,4.0]
[1672746856385,4.0,11.837,11.829,4.07082719]
[1672746856588,16.88275076,11.838,11.829,4.07082719]
[1672746858910,16.76275076,11.838,11.829,4.07082719]
[1672746866369,0.06275076,11.838,11.829,4.07082719]
[1672746868788,16.83,11.841,11.838,0.04793822]
[1672746871313,16.77,11.839,11.838,0.04793822]
[1672746871731,4.0,11.838,11.834,0.06352049]
[1672746872046,16.85,11.835,11.834,0.06352049]
[1672746872252,16.85,11.835,11.83,0.06060346]
[1672746878883,16.87,11.834,11.83,0.06060346]
[1672746883189,16.87,11.831,11.83,3.46e-06]
[1672746883398,16.87,11.831,11.819,16.87]
[1672746883399,4.0,11.83,11.82,4.0]
[1672746883609,16.83,11.827,11.82,4.0]
[1672746884240,0.0606,11.828,11.82,4.0]
[1672746884864,0.0606,11.828,11.82,20.71]
[1672746885075,0.0606,11.828,11.822,16.87]
[1672746885287,16.87,11.838,11.824,16.71]
[1672746885600,16.79,11.841,11.828,16.74]
[1672746885816,50.7637,11.845,11.829,4.0]
[1672746885817,4.0,11.84,11.829,4.0]
[1672746886026,50.0,11.837,11.823,4.0]
[1672746886236,16.87,11.832,11.823,4.0]
[1672746886760,16.87,11.832,11.823,4.06986388]
[1672746887181,4.0,11.836,11.814,49.92191204]
[1672746887182,16.87,11.825,11.814,49.92191204]
[1672746887389,16.87,11.825,11.815,4.0]
[1672746888232,0.06986388,11.824,11.816,0.06208861]
[1672746888443,0.06986388,11.824,11.818,16.71]
[1672746888653,0.06986388,11.824,11.819,4.0]
[1672746893595,6.388e-05,11.824,11.819,4.0]
[1672746893806,6.388e-05,11.824,11.82,16.75]
[1672746894016,6.388e-05,11.824,11.821,4.0]
[1672746894229,16.87,11.833,11.821,4.0]
[1672746894648,16.87,11.833,11.823,0.06716619]
[1672746898642,16.84,11.835,11.823,0.06716619]
[1672746898852,4.0,11.834,11.823,0.06716619]
[1672746900010,16.84,11.835,11.823,0.06716619]
[1672746900224,16.87,11.833,11.823,0.06716619]
[1672746900431,4.0,11.832,11.823,0.06716619]
[1672746901270,16.82,11.824,11.811,16.75]
[1672746901479,16.82,11.824,11.817,4.0]
[1672746902430,16.82,11.824,11.816,0.06470552]
[1672746908209,0.06723007,11.825,11.816,0.06470552]
[1672746908418,0.06723007,11.825,11.816,4.06470552]
[1672746908835,0.06723007,11.825,11.816,0.06470552]
[1672746909045,4.0,11.822,11.816,0.06470552]
[1672746909467,16.85,11.821,11.808,16.85]
[1672746909889,4.0,11.82,11.809,4.0]
[1672746910519,4.0,11.82,11.81,0.06045213]
[1672746910730,0.06103637,11.819,11.81,0.06045213]
[1672746914726,16.82,11.818,11.81,0.06045213]
[1672746915249,4.0,11.817,11.81,0.06045213]
[1672746915776,16.82,11.818,11.81,0.06045213]
[1672746918821,0.06103637,11.819,11.81,0.06045213]
[1672746919245,0.06103637,11.819,11.81,4.06045213]
[1672746920926,0.06103637,11.819,11.811,16.85]
[1672746921137,0.06103637,11.819,11.812,4.0]
[1672746922922,16.74,11.824,11.819,0.09689916]
[1672746924077,0.06293989,11.826,11.819,0.09689916]
[1672746924288,0.06157581,11.827,11.819,4.09689916]
[1672746924917,0.06157581,11.827,11.819,0.09689916]
[1672746925129,16.87,11.82,11.818,0.06199913]
[1672746925337,16.87,11.82,11.815,0.06730978]
[1672746925544,16.87,11.82,11.813,0.0704693]
[1672746927440,0.06639328,11.821,11.813,0.0704693]
[1672746937951,0.06639328,11.821,11.812,4.0]
[1672746938162,0.06639328,11.821,11.814,16.87]
[1672746938475,0.06639328,11.821,11.815,4.0]
[1672746944361,9.328e-05,11.821,11.815,4.0]
[1672746944680,16.87,11.83,11.818,4.0]
[1672746945729,0.06828951,11.828,11.82,0.07060094]
[1672746950144,16.93828951,11.828,11.82,0.07060094]
[1672746952877,0.06828951,11.828,11.82,0.07060094]
[1672746957711,0.06828951,11.828,11.821,16.87]
[1672746957917,0.06828951,11.828,11.822,4.0]
[1672746958972,16.87,11.834,11.828,0.11866357]
[1672746960023,66.94,11.829,11.827,0.07021301]
[1672746960228,54.0,11.828,11.795,49.92191204]
[1672746960436,50.0,11.818,11.795,53.92191204]
[1672746960655,4.0,11.817,11.796,4.0]
[1672746960967,16.87,11.815,11.802,16.76]
[1672746961275,0.06876123,11.813,11.804,0.0692618]
[1672746962536,0.06876123,11.813,11.806,16.87]
[1672746962754,0.06876123,11.813,11.809,16.87]
[1672746962961,16.87,11.821,11.81,46.3538]
[1672746963171,16.87,11.821,11.811,4.0]
[1672746964015,16.87,11.82,11.812,0.06964919]
[1672746964217,4.0,11.819,11.812,0.06964919]
[1672746965481,16.87,11.82,11.812,0.06964919]
[1672746966324,16.87,11.815,11.812,0.06964919]
[1672746966535,16.87,11.813,11.809,0.07092838]
[1672746966748,16.87,11.813,11.807,0.06421785]
[1672746966953,16.87,11.813,11.806,0.06523005]
[1672746967481,16.87,11.807,11.806,0.06523005]
[1672746967795,16.87,11.809,11.802,0.06560104]
[1672746971997,16.82,11.808,11.802,0.06560104]
[1672746972210,4.0,11.807,11.802,0.06560104]
[1672746973154,16.82,11.808,11.802,0.06560104]
[1672746975150,16.72767538,11.808,11.802,0.06560104]
[1672746976935,16.87,11.803,11.802,1.04e-06]
[1672746977251,4.0,11.802,11.79,4.0]
[1672746977875,16.87,11.803,11.79,4.0]
[1672746978090,0.0686721,11.801,11.792,0.06599965]
[1672746978828,0.0686721,11.801,11.793,16.76]
[1672746979038,0.0686721,11.801,11.794,20.87]
[1672746979979,16.87,11.81,11.797,16.87]
[1672746980193,16.87,11.81,11.798,4.0]
[1672746980415,16.87,11.813,11.8,16.76]
[1672746980626,4.0,11.812,11.801,4.0]
[1672746981150,4.0,11.812,11.802,0.06586167]
[1672746981362,20.86,11.812,11.802,0.06586167]
[1672746982517,16.86,11.812,11.802,0.06586167]
[1672746983252,16.87,11.816,11.803,16.87]
[1672746983462,4.0,11.815,11.805,0.06865298]
[1672746984198,20.87,11.813,11.805,0.06865298]
[1672746986297,16.87,11.813,11.805,0.06865298]
[1672746992717,16.787121,11.813,11.805,0.06865298]
[1672746994606,16.87,11.816,11.805,0.06865298]
[1672746994923,4.0,11.815,11.806,0.07072005]
[1672746996712,16.87,11.816,11.806,0.07072005]
[1672746998176,49.53,11.822,11.808,16.75]
[1672746998389,16.74,11.821,11.811,0.068302]
[1672746998599,16.87,11.822,11.812,0.06819772]
[1672746998808,16.87,11.822,11.813,0.06731951]
[1672747000179,16.74,11.825,11.813,4.06731951]
[1672747000388,16.74,11.825,11.815,0.06056151]
[1672747007013,16.87,11.827,11.815,0.06056151]
[1672747007326,16.76268413,11.827,11.817,0.06079451]
[1672747009748,16.87,11.829,11.817,0.06079451]
[1672747009960,16.74,11.833,11.82,16.7]
[1672747010168,16.74,11.833,11.822,0.07104665]
[1672747013105,16.87,11.836,11.823,16.85]
[1672747013321,16.87,11.836,11.825,0.07022265]
[1672747013844,16.82,11.836,11.825,0.07022265]
[1672747014055,4.0,11.835,11.825,0.07022265]
[1672747014478,16.82,11.836,11.825,0.07022265]
[1672747018681,16.75,11.835,11.825,0.07022265]
[1672747018892,16.75,11.835,11.826,0.06303852]
[1672747020048,16.54074293,11.835,11.826,0.06303852]
[1672747033500,16.39703233,11.835,11.826,0.06303852]
[1672747037706,0.0258422,11.826,11.821,4.0]
[1672747038014,0.0258422,11.826,11.818,50.3565]
[1672747038338,0.0258422,11.826,11.819,4.0]
[1672747038649,0.0258422,11.826,11.818,50.3565]
[1672747038650,0.0258422,11.826,11.815,4.0]
[1672747038860,16.72,11.824,11.818,0.06766361]
[1672747039070,4.0,11.823,11.818,0.06766361]
[1672747039281,16.72,11.824,11.818,0.06766361]
[1672747042221,16.72,11.824,11.818,6.361e-05]
[1672747042430,16.86,11.821,11.809,16.73]
[1672747042851,16.86,11.821,11.81,4.0]
[1672747043485,0.06439261,11.82,11.811,0.068079]
[1672747043688,4.06439261,11.82,11.811,0.068079]
[1672747044011,0.06439261,11.82,11.811,0.068079]
[1672747051995,0.06439261,11.82,11.811,16.928079]
[1672747052314,0.06439261,11.82,11.812,4.0]
[1672747056937,16.77,11.824,11.82,0.07385]
[1672747057145,0.0258422,11.826,11.82,0.07385]
[1672747065555,0.0258422,11.826,11.821,16.76]
[1672747065975,0.0258422,11.826,11.822,4.0]
[1672747066392,16.89,11.834,11.822,4.0]
[1672747066603,16.89,11.835,11.822,4.0]
[1672747067343,16.89,11.835,11.824,0.07145207]
[1672747069660,16.89,11.835,11.825,49.92191204]
[1672747069972,16.89,11.835,11.826,4.0]
[1672747070395,16.89,11.832,11.826,4.0]
[1672747070600,16.89,11.832,11.825,4.06563476]
[1672747072708,16.78,11.834,11.825,4.06563476]
[1672747077639,16.78,11.834,11.825,0.06563476]
[1672747079327,16.63728774,11.834,11.825,0.06563476]
[1672747086370,16.83,11.832,11.825,0.06563476]
[1672747087841,16.74,11.826,11.825,3.476e-05]
[1672747088049,16.74,11.826,11.817,46.9189]
[1672747088261,16.84,11.824,11.817,46.9189]
[1672747088576,16.84,11.824,11.813,4.0]
[1672747088787,16.90686386,11.824,11.813,4.0]
[1672747088995,16.90686386,11.824,11.816,4.06880841]
[1672747089733,16.90686386,11.824,11.816,0.06880841]
[1672747101814,16.89,11.823,11.816,0.06880841]
[1672747102025,4.0,11.822,11.816,0.06880841]
[1672747102235,16.89,11.823,11.816,0.06880841]
[1672747115785,0.06686386,11.824,11.816,0.06880841]
[1672747116098,47.3227,11.83,11.824,0.09264122]
[1672747116313,4.0,11.83,11.824,0.09264122]
[1672747117367,16.89,11.831,11.824,0.09264122]
[1672747121045,16.8,11.831,11.824,0.09264122]
[1672747121359,4.0,11.83,11.824,0.09264122]
[1672747121564,16.8,11.831,11.824,0.09264122]
[1672747127241,16.88,11.829,11.824,0.09264122]
[1672747127453,16.79,11.827,11.824,0.09264122]
[1672747127662,4.0,11.826,11.824,4.122e-05]
[1672747128190,16.79,11.827,11.824,4.122e-05]
[1672747136601,16.78,11.83,11.824,4.122e-05]
[1672747136917,16.77,11.831,11.824,4.122e-05]
[1672747137128,4.0,11.83,11.824,4.122e-05]
[1672747137544,16.77,11.831,11.824,4.122e-05]
[1672747142166,16.62225554,11.831,11.824,4.122e-05]
[1672747145538,16.88,11.834,11.824,4.122e-05]
[1672747145749,4.0,11.833,11.825,0.06056326]
[1672747146167,16.88,11.834,11.825,0.06056326]
[1672747156042,16.79263956,11.834,11.825,0.06056326]
[1672747156257,0.01359278,11.825,11.824,4.122e-05]
[1672747169182,0.06056326,11.829,11.825,4.21044041]
[1672747171181,0.06056326,11.829,11.825,0.21044041]
[1672747180641,0.06056326,11.829,11.823,0.06802408]
[1672747181797,16.88,11.832,11.829,0.08919931]
[1672747184427,4.0,11.831,11.826,0.06269202]
[1672747185059,16.88,11.832,11.826,0.06269202]
[1672747187163,16.83,11.828,11.826,9.202e-05]
[1672747187476,16.83,11.828,11.816,121.13781204]
[1672747188003,0.0626,11.827,11.819,0.06593854]
[1672747190422,4.0626,11.827,11.819,0.06593854]
[1672747190734,0.0626,11.827,11.819,0.06593854]
[1672747193889,16.88,11.825,11.819,0.06593854]
[1672747194094,16.83,11.823,11.819,0.06593854]
[1672747194309,4.0,11.822,11.811,4.0]
[1672747195044,4.0,11.822,11.797,4.0]
[1672747195255,0.06021257,11.814,11.81,16.77]
[1672747195465,0.06480308,11.816,11.81,16.77]
[1672747195675,0.06914528,11.817,11.81,16.77]
[1672747195881,0.06802755,11.818,11.81,16.77]
[1672747196089,0.06802755,11.818,11.81,16.83086166]
[1672747197880,2.755e-05,11.818,11.813,16.79]
[1672747198085,2.755e-05,11.818,11.814,4.0]
[1672747200297,2.755e-05,11.818,11.813,16.79]
[1672747200928,2.755e-05,11.818,11.811,4.0]
[1672747205868,2.755e-05,11.818,11.813,16.75]
[1672747206182,2.755e-05,11.818,11.814,4.0]
[1672747207865,16.88,11.825,11.814,4.0]
[1672747208911,0.06051099,11.824,11.816,16.88]
[1672747209128,16.8,11.831,11.817,4.0]
[1672747209649,16.73,11.829,11.817,4.0]
[1672747209859,4.0,11.828,11.817,4.0]
[1672747210383,16.73,11.829,11.818,0.06722749]
[1672747211229,16.71,11.831,11.819,16.79]
[1672747211540,16.88,11.834,11.821,16.94605764]
[1672747211751,4.0,11.833,11.823,0.06511696]
[1672747212170,20.88,11.834,11.823,0.06511696]
[1672747213109,16.88,11.834,11.823,0.06511696]
[1672747215527,16.88,11.834,11.823,16.94511696]
[1672747215741,16.88,11.834,11.824,4.0]
[1672747215951,63.2477,11.835,11.824,4.0]
[1672747216372,16.71,11.835,11.824,4.0]
[1672747217843,16.73,11.838,11.825,16.88]
[1672747218162,16.88,11.841,11.827,16.83911902]
[1672747218370,16.71,11.843,11.83,16.81600707]
[1672747218579,16.71,11.843,11.832,0.06195433]
[1672747222989,16.88,11.846,11.834,4.0]
[1672747223194,16.88,11.846,11.836,0.0603498]
[1672747224036,49.7103,11.849,11.836,0.0603498]
[1672747224037,66.4903,11.849,11.836,16.8303498]
[1672747224247,66.4903,11.849,11.837,4.0]
[1672747224453,66.4903,11.849,11.839,0.06911631]
[1672747226354,49.7103,11.849,11.839,16.88911631]
[1672747226668,49.7103,11.849,11.84,4.0]
[1672747227086,16.8,11.848,11.839,0.06911631]
[1672747227301,16.88,11.845,11.839,0.06558092]
[1672747227510,16.88,11.845,11.838,0.06252966]
[1672747230451,16.88,11.848,11.838,0.06252966]
[1672747232975,16.88,11.851,11.838,16.83252966]
[1672747233186,16.88,11.851,11.84,0.07135342]
[1672747233397,16.88,11.853,11.84,0.07135342]
[1672747233603,16.88,11.853,11.842,0.06628599]
[1672747233818,16.81,11.853,11.842,0.06628599]
[1672747234029,4.0,11.852,11.842,0.06628599]
[1672747234346,4.0,11.854,11.842,0.06628599]
[1672747234553,16.64,11.851,11.842,0.06628599]
[1672747237501,16.54975523,11.851,11.842,0.06628599]
[1672747240544,16.81,11.843,11.83,4.0]
[1672747240754,16.81,11.84,11.83,4.0]
[1672747241387,16.81,11.843,11.83,4.0]
[1672747241599,0.06628599,11.841,11.832,0.06120714]
[1672747243911,0.06628599,11.841,11.832,4.06120714]
[1672747247907,16.87628599,11.841,11.832,0.06120714]
[1672747248959,0.06628599,11.841,11.832,0.06120714]
[1672747251689,0.06628599,11.841,11.835,16.66]
[1672747251894,0.06628599,11.841,11.836,4.0]
[1672747254945,48.3548,11.849,11.836,20.72]
[1672747255149,48.3548,11.849,11.838,16.74]
[1672747255363,48.3548,11.849,11.839,4.0]
[1672747256100,48.3548,11.849,11.84,0.07092709]
[1672747256624,4.0,11.85,11.841,4.0]
[1672747257150,16.81,11.851,11.841,4.0]
[1672747262508,16.81,11.851,11.84,16.88092709]
[1672747263771,16.64,11.844,11.84,0.07092709]
[1672747266501,16.64,11.844,11.84,2.709e-05]
[1672747266817,16.81,11.842,11.834,4.0]
[1672747267026,16.81,11.842,11.832,4.0]
[1672747267868,0.06011668,11.841,11.833,0.06475425]
[1672747278897,0.06011668,11.841,11.833,16.72475425]
[1672747279114,0.06011668,11.841,11.834,4.0]
[1672747281429,16.66,11.846,11.841,0.03500804]
[1672747295718,16.5055679,11.846,11.841,0.03500804]
[1672747297294,16.64,11.844,11.841,0.03500804]
[1672747297505,4.0,11.843,11.839,0.06714061]
[1672747298454,16.64,11.844,11.839,0.06714061]
[1672747299084,16.79,11.844,11.839,0.06714061]
[1672747310120,16.57857089,11.844,11.839,0.06714061]
[1672747314640,4.0,11.843,11.839,4.061e-05]
[1672747314846,4.0,11.843,11.834,4.0]
[1672747315158,16.57857089,11.844,11.834,4.0]
[1672747315588,16.84,11.842,11.834,4.0]
[1672747315796,16.91111104,11.842,11.834,4.06530168]
[1672747318738,0.07111104,11.842,11.834,4.06530168]
[1672747323464,0.07111104,11.842,11.834,0.06530168]
[1672747329129,16.84,11.843,11.842,0.04200711]
[1672747329340,16.84,11.843,11.835,3.97670711]
[1672747329551,16.84,11.838,11.829,4.0]
[1672747330188,16.84,11.838,11.83,4.07144626]
[1672747333025,16.81,11.841,11.83,4.07144626]
[1672747333233,16.81,11.841,11.831,0.06735976]
[1672747333437,4.0,11.84,11.831,0.06735976]
[1672747334179,16.81,11.841,11.831,0.06735976]
[1672747338700,16.84,11.843,11.831,0.06735976]
[1672747339013,4.0,11.842,11.831,0.06735976]
[1672747339532,16.84,11.843,11.831,0.06735976]
[1672747342059,16.60634439,11.843,11.831,0.06735976]
[1672747354147,16.54526629,11.843,11.831,0.06735976]
[1672747357300,0.14423472,11.831,11.83,4.0]
[1672747357829,4.0,11.842,11.83,4.0]
[1672747358030,20.54526629,11.843,11.83,4.0]
[1672747358245,0.06759983,11.841,11.832,0.06632544]
[1672747370534,16.54526629,11.843,11.841,0.09362341]
[1672747370954,16.54526629,11.843,11.833,4.0]
[1672747371586,16.54526629,11.843,11.834,0.06137019]
[1672747385034,16.42816831,11.843,11.834,0.06137019]
[1672747390816,16.84,11.846,11.834,0.06137019]
[1672747391027,16.84,11.846,11.836,0.07018289]
[1672747397860,16.76556623,11.846,11.836,0.07018289]
[1672747409953,48.7739,11.85,11.839,16.84]
[1672747410160,48.7739,11.85,11.84,4.06175209]
[1672747410475,48.57565735,11.85,11.84,4.06175209]
[1672747411946,16.73,11.851,11.84,4.06175209]
[1672747414366,16.84,11.854,11.842,16.84]
[1672747414577,16.84,11.854,11.844,0.0634831]
[1672747419624,16.79,11.854,11.844,0.0634831]
[1672747423093,16.68063888,11.854,11.844,0.0634831]
[1672747427295,16.66,11.856,11.844,16.8734831]
[1672747427505,16.66,11.856,11.846,0.06552325]
[1672747428656,16.81,11.86,11.846,0.06552325]
[1672747428873,16.81,11.86,11.849,0.06342531]
[1672747429081,16.81,11.86,11.849,4.06342531]
[1672747431605,4.0,11.856,11.849,0.06342531]
[1672747431810,4.0,11.856,11.848,0.06335934]
[1672747432753,16.79,11.857,11.848,0.06335934]
[1672747433076,0.06012915,11.848,11.845,4.0]
[1672747434753,0.06479891,11.851,11.845,4.0]
[1672747435596,0.06479891,11.851,11.843,4.0]
[1672747443998,0.06479891,11.851,11.842,0.06485628]
[1672747444839,16.81,11.844,11.842,5.628e-05]
[1672747445053,16.81,11.844,11.831,16.66]
[1672747445258,20.66,11.843,11.832,4.0]
[1672747445680,16.66,11.843,11.832,4.0]
[1672747445893,0.06609101,11.842,11.833,0.06268147]
[1672747457447,16.66,11.843,11.842,0.07588889]
[1672747459235,16.81,11.845,11.842,0.07588889]
[1672747463121,4.0,11.844,11.838,0.06264477]
[1672747463541,16.81,11.845,11.838,0.06264477]
[1672747463752,16.66,11.842,11.838,0.06264477]
[1672747466063,4.0,11.841,11.838,4.477e-05]
[1672747466268,4.0,11.841,11.832,4.0]
[1672747466586,16.66,11.842,11.832,4.0]
[1672747467111,0.06492436,11.841,11.833,0.06919137]
[1672747467847,4.06492436,11.841,11.833,0.06919137]
[1672747468055,0.06492436,11.841,11.833,0.06919137]
[1672747478870,16.66,11.842,11.841,0.11466566]
[1672747479297,16.66,11.842,11.834,4.0]
[1672747480029,16.72556753,11.842,11.834,4.06568175]
[1672747480976,0.0771555,11.834,11.832,4.0]
[1672747481506,0.0771555,11.834,11.828,16.81]
[1672747482137,0.0771555,11.834,11.828,16.87665243]
[1672747485287,16.66,11.842,11.831,16.81]
[1672747485503,16.81,11.844,11.832,4.0]
[1672747486342,0.06139301,11.842,11.834,0.06307132]
[1672747489180,16.87139301,11.842,11.834,0.06307132]
[1672747499165,16.78577893,11.842,11.834,0.06307132]
[1672747501053,50.0,11.852,11.834,0.06307132]
[1672747501054,16.81,11.844,11.834,0.06307132]
[1672747501366,16.81,11.844,11.835,0.07081906]
[1672747510298,16.81,11.846,11.835,50.07081906]
[1672747510612,16.81,11.846,11.836,4.0]
[1672747512928,16.67725564,11.846,11.836,4.0]
[1672747520283,16.81,11.85,11.837,16.81]
[1672747520493,4.0,11.849,11.839,0.07032086]
[1672747520702,16.81,11.85,11.839,0.07032086]
[1672747526693,16.72093047,11.85,11.839,0.07032086]
[1672747529005,16.81,11.847,11.839,0.07032086]
[1672747529215,16.81,11.847,11.839,0.07092643]
[1672747533419,16.79,11.849,11.839,0.07092643]
[1672747533633,16.79,11.849,11.84,0.06600639]
[1672747534469,4.0,11.854,11.84,0.06600639]
[1672747534470,16.79,11.851,11.84,0.06600639]
[1672747534783,16.79,11.851,11.841,0.06308709]
[1672747538979,16.64364913,11.851,11.841,0.06308709]
[1672747542661,66.3548,11.855,11.843,4.0]
[1672747542873,66.3548,11.855,11.845,0.07016598]
[1672747544028,16.81,11.855,11.845,0.07016598]
[1672747544558,16.81,11.855,11.845,4.07016598]
[1672747546029,16.81,11.856,11.845,4.07016598]
[1672747546239,16.81,11.856,11.846,0.0704386]
[1672747546869,63.7102,11.859,11.848,4.0]
[1672747547077,63.7102,11.859,11.849,0.06305896]
[1672747547289,63.7102,11.859,11.849,16.87305896]
[1672747547498,63.7102,11.859,11.85,4.0]
[1672747547702,16.8,11.859,11.85,4.0]
[1672747551174,16.66,11.857,11.849,0.06305896]
[1672747551487,16.4991807,11.857,11.849,0.0650227]
[1672747554327,0.06717281,11.856,11.846,20.81]
[1672747554642,0.06717281,11.856,11.846,4.0]
[1672747555271,0.06717281,11.856,11.847,0.0663547]
[1672747567362,16.81,11.859,11.856,0.12534219]
[1672747568201,4.0,11.858,11.848,4.0]
[1672747568411,4.0,11.858,11.849,0.06978903]
[1672747568726,20.81,11.859,11.849,0.06978903]
[1672747568929,16.81,11.859,11.849,0.06978903]
[1672747579233,16.81,11.856,11.849,0.06978903]
[1672747581126,16.66,11.853,11.849,8.903e-05]
[1672747581444,4.0,11.852,11.849,8.903e-05]
[1672747581650,4.0,11.852,11.841,4.0]
[1672747582071,0.07087253,11.851,11.842,0.06146471]
[1672747582914,16.81,11.85,11.842,0.06146471]
[1672747583123,4.0,11.849,11.842,0.06146471]
[1672747583648,16.81,11.85,11.842,0.06146471]
[1672747595003,16.73465377,11.85,11.842,0.06146471]
[1672747607515,16.55623093,11.85,11.842,0.06146471]
[1672747619281,16.79,11.848,11.842,0.06146471]
[1672747620441,16.8,11.846,11.842,0.06146471]
[1672747620756,16.81,11.844,11.842,0.06146471]
[1672747620965,16.81,11.844,11.839,0.06112618]
[1672747622331,16.61460137,11.844,11.839,0.06112618]
[1672747624223,16.74,11.846,11.839,0.06112618]
[1672747627163,0.06074087,11.848,11.839,0.06112618]
[1672747627687,0.0073512,11.839,11.837,4.0]
[1672747629264,16.81,11.849,11.837,4.0]
[1672747630105,0.06322195,11.847,11.839,0.06725578]
[1672747637354,0.06322195,11.847,11.839,16.75725578]
[1672747637565,0.06322195,11.847,11.84,4.0]
[1672747642924,16.79,11.852,11.847,0.05425014]
[1672747651534,4.0,11.858,11.847,0.05425014]
[1672747651745,16.66,11.85,11.848,0.06330855]
[1672747651956,16.66,11.85,11.847,0.05425014]
[1672747652167,16.81,11.848,11.845,0.06972325]
[1672747652377,16.81,11.848,11.842,0.06403855]
[1672747664777,16.69558238,11.848,11.842,0.06403855]
[1672747674239,16.79,11.851,11.842,0.06403855]
[1672747679067,16.67252559,11.851,11.842,0.06403855]
[1672747690102,16.66,11.853,11.842,0.06403855]
[1672747690309,16.66,11.853,11.842,4.06403855]
[1672747690522,16.74,11.856,11.844,16.81]
[1672747690730,16.74,11.856,11.846,0.06046795]
[1672747693777,16.65633512,11.856,11.846,0.06046795]
[1672747707439,16.45551457,11.856,11.846,0.06046795]
[1672747713741,16.8,11.856,11.846,0.06046795]
[1672747715102,16.8,11.858,11.846,66.81046795]
[1672747715319,45.9685,11.859,11.849,16.77]
[1672747715528,45.9685,11.859,11.85,4.06336392]
[1672747716161,16.7,11.861,11.85,4.06336392]
[1672747719839,16.8,11.865,11.852,16.65]
[1672747720049,4.0,11.864,11.854,0.06294803]
[1672747720575,20.8,11.865,11.854,0.06294803]
[1672747720779,20.66275976,11.865,11.854,0.06294803]
[1672747721521,16.66275976,11.865,11.854,0.06294803]
[1672747726665,16.67,11.862,11.854,0.06294803]
[1672747728772,16.63,11.862,11.854,0.06294803]
[1672747729505,4.0,11.861,11.854,0.06294803]
[1672747729715,54.0,11.861,11.854,0.06294803]
[1672747730662,16.65,11.858,11.854,0.06294803]
[1672747733816,16.55986748,11.858,11.854,0.06294803]
[1672747745797,48.2205,11.86,11.854,0.06294803]
[1672747746638,47.98723316,11.86,11.854,0.06294803]
[1672747747051,16.78,11.861,11.854,0.06294803]